fUST/lending_fUST_20250802
["ID","MTS","AMOUNT","RATE_DAILY","PERIOD"]
[376739264,1754094632797,-460.0,0.00019234,2]
[376739266,1754094632809,-460.0,0.00019234,2]
[376739268,1754094632818,-460.0,0.00019234,2]
[376739270,1754094632827,-500.0,0.00019234,2]
[376739272,1754094632836,-500.0,0.00019234,2]
[376739274,1754094632845,-460.0,0.00019234,2]
[376739276,1754094632854,-460.0,0.00019234,2]
[376739278,1754094632863,-460.0,0.00019234,2]
[376739280,1754094632872,-174.94,0.00019234,2]
[376739282,1754094632881,-553.10024939,0.00019234,2]
[376739284,1754094632890,-460.0,0.00019234,2]
[376739286,1754094632899,-490.53,0.00019234,2]
[376739288,1754094632908,-173.69546225,0.00019234,2]
[376739290,1754094632920,-286.30453775,0.00019234,2]
[376739292,1754094632929,-460.0,0.00019234,2]
[376739294,1754094632938,-460.0,0.00019234,2]
[376739296,1754094632947,-460.85,0.00019234,2]
[376739298,1754094632956,-460.0,0.00019234,2]
[376739300,1754094632965,-460.0,0.00019234,2]
[376739302,1754094632974,-460.0,0.00019234,2]
[376739304,1754094632983,-300.73,0.00019234,2]
[376739306,1754094632992,-460.0,0.00019234,2]
[376739308,1754094633002,-460.0,0.00019234,2]
[376739310,1754094633011,-546.16,0.00019234,2]
[376739312,1754094633019,-370.23028455,0.00019234,2]
[376739324,1754094638716,-89.76971545,0.00019234,2]
[376739325,1754094638726,-460.0,0.00019234,2]
[376739326,1754094638736,-460.0,0.00019234,2]
[376739327,1754094638746,-460.0,0.00019234,2]
[376739328,1754094638755,-505.95,0.00019234,2]
[376739329,1754094638764,-460.0,0.00019234,2]
[376739330,1754094638774,-375.29,0.00019234,2]
[376739331,1754094638783,-460.0,0.00019234,2]
[376739332,1754094638793,-460.0,0.00019234,2]
[376739333,1754094638804,-460.0,0.00019234,2]
[376739334,1754094638815,-730.84,0.00019234,2]
[376739335,1754094638824,-460.0,0.00019234,2]
[376739337,1754094638833,-460.0,0.00019235,2]
[376739338,1754094638843,-460.0,0.00019235,2]
[376739339,1754094638852,-460.0,0.00019235,2]
[376739340,1754094638862,-460.0,0.00019235,2]
[376739341,1754094638871,-460.0,0.00019235,2]
[376739342,1754094638880,-460.0,0.00019235,2]
[376739343,1754094638890,-460.0,0.00019235,2]
[376739344,1754094638899,-463.4151537,0.00019235,2]
[376739345,1754094638908,-460.0,0.00019235,2]
[376739346,1754094638917,-460.0,0.00019235,2]
[376739347,1754094638927,-348.04728157,0.00019235,2]
[376739348,1754094638936,-460.0,0.00019235,2]
[376739349,1754094638945,-460.0,0.00019235,2]
[376739350,1754094638954,-460.0,0.00019235,2]
[376739351,1754094638964,-460.0,0.00019235,2]
[376739352,1754094638973,-498.00506182,0.00019235,2]
[376739353,1754094638982,-460.0,0.00019235,2]
[376739354,1754094638991,-460.0,0.00019235,2]
[376739355,1754094639000,-198.91500329,0.00019235,2]
[376739356,1754094639010,-460.0,0.00019235,2]
[376739357,1754094639019,-460.0,0.00019235,2]
[376739358,1754094639028,-460.0,0.00019235,2]
[376739359,1754094639037,-460.0,0.00019235,2]
[376739360,1754094639047,-460.0,0.00019235,2]
[376739361,1754094639057,-1000.0,0.00019235,2]
[376739362,1754094639067,-460.0,0.00019235,2]
[376739363,1754094639076,-460.0,0.00019235,2]
[376739364,1754094639085,-500.0,0.00019235,2]
[376739365,1754094639094,-460.0,0.00019235,2]
[376739366,1754094639104,-460.0,0.00019235,2]
[376739367,1754094639113,-193.58477786,0.00019235,2]
[376739368,1754094639122,-460.0,0.00019235,2]
[376739369,1754094639132,-460.0,0.00019235,2]
[376739370,1754094639141,-460.0,0.00019235,2]
[376739371,1754094639151,-460.0,0.00019235,2]
[376739372,1754094639160,-473.21117086,0.00019235,2]
[376739373,1754094639169,-460.0,0.00019235,2]
[376739374,1754094639178,-231.40707418,0.00019235,2]
[376739375,1754094639187,-460.0,0.00019235,2]
[376739376,1754094639197,-460.0,0.00019235,2]
[376739377,1754094639208,-464.80584074,0.00019235,2]
[376739378,1754094639218,-477.92,0.00019235,2]
[376739379,1754094639227,-414.56,0.00019235,2]
[376739380,1754094639237,-460.0,0.00019235,2]
[376739381,1754094639247,-500.0,0.00019236,2]
[376739382,1754094639256,-460.0,0.00019236,2]
[376739383,1754094639266,-460.0,0.00019236,2]
[376739384,1754094639276,-572.4,0.00019236,2]
[376739385,1754094639285,-460.0,0.00019236,2]
[376739386,1754094639295,-460.0,0.00019236,2]
[376739387,1754094639306,-460.0,0.00019236,2]
[376739388,1754094639316,-1133.02,0.00019236,2]
[376739389,1754094639326,-500.0,0.00019237,2]
[376739390,1754094639336,-505.64,0.00019237,2]
[376739391,1754094639345,-460.0,0.00019508,2]
[376739392,1754094639356,-460.0,0.00019508,2]
[376739393,1754094639366,-460.0,0.00019508,2]
[376739394,1754094639382,-460.0,0.00019508,2]
[376739395,1754094639391,-511.67,0.00019508,2]
[376739396,1754094639402,-460.0,0.00019508,2]
[376739397,1754094639411,-2049.25,0.00019508,2]
[376739398,1754094639421,-460.0,0.00019508,2]
[376739399,1754094639430,-460.0,0.00019508,2]
[376739400,1754094639440,-152.5645834,0.00019508,2]
[376739401,1754094639450,-490.53,0.00019508,2]
[376739402,1754094639460,-589.23,0.00019508,2]
[376739403,1754094639471,-299.59883217,0.00019508,2]
[376739404,1754094639480,-460.0,0.00019508,2]
[376739405,1754094639490,-460.85,0.00019508,2]
[376739406,1754094639499,-460.0,0.00019508,2]
[376739407,1754094639510,-460.0,0.00019508,2]
[376739408,1754094639519,-460.0,0.00019508,2]
[376739409,1754094639529,-762.91,0.00019508,2]
[376739410,1754094639539,-460.0,0.00019508,2]
[376739411,1754094639549,-460.0,0.00019508,2]
[376739412,1754094639559,-460.0,0.00019508,2]
[376739413,1754094639569,-546.16,0.00019508,2]
[376739414,1754094639579,-460.0,0.00019508,2]
[376739415,1754094639589,-460.0,0.00019508,2]
[376739416,1754094639600,-460.0,0.00019508,2]
[376739417,1754094639609,-460.0,0.00019508,2]
[376739418,1754094639619,-505.95,0.00019508,2]
[376739419,1754094639628,-460.0,0.00019508,2]
[376739420,1754094639638,-460.0,0.00019508,2]
[376739421,1754094639647,-168.07,0.00019508,2]
[376739422,1754094639657,-730.84,0.00019508,2]
[376739423,1754094639666,-332.86,0.00019508,2]
[376739424,1754094639676,-460.0,0.00019509,2]
[376739425,1754094639687,-484.68,0.00019509,2]
[376739426,1754094639696,-460.0,0.00019509,2]
[376739427,1754094639706,-500.0,0.00019509,2]
[376739428,1754094639715,-460.0,0.00019509,2]
[376739429,1754094639725,-460.0,0.00019509,2]
[376739430,1754094639734,-460.0,0.00019509,2]
[376739431,1754094639743,-460.0,0.00019509,2]
[376739432,1754094639752,-460.0,0.00019509,2]
[376739433,1754094639762,-460.0,0.00019509,2]
[376739434,1754094639771,-460.0,0.00019509,2]
[376739435,1754094639781,-460.0,0.00019509,2]
[376739436,1754094639790,-460.0,0.00019509,2]
[376739437,1754094639799,-460.0,0.00019509,2]
[376739438,1754094639811,-460.0,0.00019509,2]
[376739439,1754094639820,-460.0,0.00019509,2]
[376739440,1754094639830,-460.0,0.00019509,2]
[376739441,1754094639839,-460.0,0.00019509,2]
[376739442,1754094639850,-572.4,0.0001951,2]
[376739443,1754094639860,-460.0,0.0001951,2]
[376739444,1754094639870,-460.0,0.0001951,2]
[376739445,1754094639880,-1133.02,0.0001951,2]
[376739446,1754094639889,-505.64,0.00019511,2]
[376739447,1754094639899,-500.0,0.00019573,2]
[376739448,1754094639909,-231.58651985,0.00019573,2]
[376739449,1754094639918,-500.0,0.00019573,2]
[376739450,1754094639928,-200.0,0.00019618,15]
[376739451,1754094639937,-200.0,0.00019618,15]
[376739452,1754094639946,-200.0,0.00019618,15]
[376739453,1754094639956,-200.0,0.00019618,15]
[376739454,1754094639965,-460.0,0.00019782,2]
[376739455,1754094639974,-460.0,0.00019782,2]
[376739456,1754094639983,-460.0,0.00019782,2]
[376739457,1754094639993,-460.0,0.00019782,2]
[376739458,1754094640002,-460.0,0.00019782,2]
[376739459,1754094640011,-2049.25,0.00019782,2]
[376739460,1754094640021,-460.0,0.00019782,2]
[376739461,1754094640030,-490.53,0.00019782,2]
[376739462,1754094640039,-491.23,0.00019782,2]
[376739463,1754094640048,-460.85,0.00019782,2]
[376739464,1754094640060,-460.0,0.00019782,2]
[376739465,1754094640069,-460.0,0.00019782,2]
[376739466,1754094640078,-762.91,0.00019782,2]
[376739467,1754094640088,-460.0,0.00019782,2]
[376739468,1754094640097,-460.0,0.00019782,2]
[376739469,1754094640106,-460.0,0.00019782,2]
[376739470,1754094640116,-546.16,0.00019782,2]
[376739471,1754094640125,-538.37559774,0.00019782,2]
[376739473,1754094640134,-460.0,0.00019782,2]
[376739474,1754094640143,-460.0,0.00019782,2]
[376739475,1754094640152,-505.95,0.00019782,2]
[376739476,1754094640162,-460.0,0.00019782,2]
[376739477,1754094640182,-460.0,0.00019782,2]
[376739479,1754094640204,-730.84,0.00019782,2]
[376739480,1754094640213,-460.0,0.00019783,2]
[376739481,1754094640222,-460.0,0.00019783,2]
[376739482,1754094640232,-460.0,0.00019783,2]
[376739483,1754094640242,-462.41638643,0.00019783,2]
[376739484,1754094640251,-460.0,0.00019783,2]
[376739485,1754094640261,-460.0,0.00019783,2]
[376739486,1754094640270,-460.0,0.00019783,2]
[376739487,1754094640279,-281.94155488,0.00019783,2]
[376739488,1754094640290,-460.0,0.00019783,2]
[376739489,1754094640299,-460.0,0.00019783,2]
[376739491,1754094640309,-460.0,0.00019783,2]
[376739492,1754094640319,-460.0,0.00019783,2]
[376739493,1754094640329,-572.4,0.00019784,2]
[376739494,1754094640458,-460.0,0.00019784,2]
[376739495,1754094640469,-460.0,0.00019784,2]
[376739496,1754094640479,-1133.02,0.00019784,2]
[376739497,1754094640488,-505.64,0.00019785,2]
[376739498,1754094640497,-501.46076756,0.00019843,2]
[376739499,1754094640507,-505.15990573,0.00019843,2]
[376739500,1754094640516,-1304.67232587,0.00019871,2]
[376739501,1754094640526,-909.52850066,0.000199,2]
[376739502,1754094640535,-3477.92534301,0.0002,20]
[376739504,1754094640544,-436.63515113,0.00020055,2]
[376739505,1754094640553,-500.0,0.00020055,2]
[376739506,1754094640565,-500.0,0.00020055,2]
[376739508,1754094640575,-500.0,0.00020055,2]
[376739509,1754094640584,-500.0,0.00020055,2]
[376739510,1754094640594,-500.0,0.00020055,2]
[376739511,1754094640603,-552.07389171,0.00020055,2]
[376739512,1754094640612,-500.0,0.00020055,2]
[376739513,1754094640621,-500.0,0.00020055,2]
[376739515,1754094640631,-500.0,0.00020055,2]
[376739517,1754094640640,-500.0,0.00020055,2]
[376739519,1754094640649,-500.0,0.00020055,2]
[376739520,1754094640658,-500.0,0.00020055,2]
[376739521,1754094640667,-500.0,0.00020055,2]
[376739522,1754094640676,-500.0,0.00020055,2]
[376739523,1754094640686,-162.57035404,0.00020055,2]
[376739524,1754094640695,-500.0,0.00020055,2]
[376739525,1754094640708,-500.0,0.00020055,2]
[376739526,1754094640717,-500.0,0.00020055,2]
[376739527,1754094640726,-500.0,0.00020055,2]
[376739528,1754094640735,-431.97855352,0.00020055,2]
[376739529,1754094640745,-500.0,0.00020055,2]
[376739530,1754094640754,-500.0,0.00020055,2]
[376739531,1754094640764,-498.30217895,0.00020055,2]
[376739532,1754094640774,-315.13173514,0.00020055,2]
[376739533,1754094640783,-387.09103633,0.00020055,2]
[376739534,1754094640796,-365.9675545,0.00020055,2]
[376739535,1754094640806,-500.0,0.00020055,2]
[376739536,1754094640819,-500.0,0.00020055,2]
[376739537,1754094640828,-500.0,0.00020055,2]
[376739538,1754094640838,-500.0,0.00020055,2]
[376739539,1754094640847,-501.79564595,0.00020055,2]
[376739540,1754094640856,-500.0,0.00020055,2]
[376739541,1754094640865,-500.0,0.00020055,2]
[376739542,1754094640874,-460.0,0.00020056,2]
[376739543,1754094640883,-460.0,0.00020056,2]
[376739544,1754094640892,-460.0,0.00020056,2]
[376739545,1754094640900,-460.0,0.00020056,2]
[376739546,1754094640909,-2049.25,0.00020056,2]
[376739547,1754094640918,-460.0,0.00020056,2]
[376739548,1754094640927,-490.53,0.00020056,2]
[376739549,1754094640936,-460.85,0.00020056,2]
[376739550,1754094640946,-460.0,0.00020056,2]
[376739551,1754094640955,-762.91,0.00020056,2]
[376739552,1754094640964,-460.0,0.00020056,2]
[376739553,1754094640974,-460.0,0.00020056,2]
[376739554,1754094640983,-460.0,0.00020056,2]
[376739555,1754094640993,-546.16,0.00020056,2]
[376739556,1754094641002,-460.0,0.00020056,2]
[376739557,1754094641011,-505.95,0.00020056,2]
[376739558,1754094641020,-460.0,0.00020056,2]
[376739559,1754094641029,-460.0,0.00020056,2]
[376739560,1754094641038,-730.84,0.00020056,2]
[376739561,1754094641047,-460.0,0.00020057,2]
[376739562,1754094641057,-460.0,0.00020057,2]
[376739563,1754094641068,-317.99614882,0.00020057,2]
[376739564,1754094641077,-460.0,0.00020057,2]
[376739565,1754094641087,-460.0,0.00020057,2]
[376739566,1754094641097,-460.0,0.00020057,2]
[376739567,1754094641106,-460.0,0.00020057,2]
[376739568,1754094641115,-460.0,0.00020057,2]
[376739569,1754094641125,-460.0,0.00020057,2]
[376739570,1754094641134,-248.68294888,0.00020057,2]
[376739571,1754094641143,-572.4,0.00020058,2]
[376739572,1754094641153,-460.0,0.00020058,2]
[376739573,1754094641162,-460.0,0.00020058,2]
[376739574,1754094641172,-1133.02,0.00020058,2]
[376739575,1754094641181,-505.64,0.00020059,2]
[376739576,1754094641190,-537.76867247,0.00020073,2]
[376739577,1754094641199,-500.0,0.00020073,2]
[376739578,1754094641208,-502.34201745,0.00020073,2]
[376739579,1754094641217,-507.12273921,0.00020073,2]
[376739580,1754094641227,-500.78125744,0.00020073,2]
[376739581,1754094641236,-500.0,0.00020073,2]
[376739582,1754094641244,-500.0,0.00020073,2]
[376739583,1754094641254,-500.31686769,0.00020073,2]
[376739584,1754094641263,-329.4073974,0.00020073,2]
[376739585,1754094641272,-500.0,0.00020073,2]
[376739586,1754094641281,-1000.0,0.00020121,2]
[376739587,1754094641291,-909.52850048,0.00020176,2]
[376739588,1754094641300,-345.09820415,0.00020255,2]
[376739589,1754094641311,-160.0,0.00020306,2]
[376739590,1754094641321,-460.0,0.0002033,2]
[376739591,1754094641330,-306.02,0.0002033,2]
[376739592,1754094641339,-195.89,0.0002033,2]
[376739593,1754094641349,-460.0,0.0002033,2]
[376739594,1754094641358,-2049.25,0.0002033,2]
[376739595,1754094641368,-460.0,0.0002033,2]
[376739596,1754094641383,-490.53,0.0002033,2]
[376739597,1754094641392,-460.85,0.0002033,2]
[376739598,1754094641401,-426.69,0.0002033,2]
[376739599,1754094641411,-762.91,0.0002033,2]
[376739600,1754094641421,-460.0,0.0002033,2]
[376739601,1754094641429,-460.0,0.0002033,2]
[376739602,1754094641439,-460.0,0.0002033,2]
[376739603,1754094641447,-546.16,0.0002033,2]
[376739604,1754094641457,-460.0,0.0002033,2]
[376739605,1754094641466,-505.95,0.0002033,2]
[376739606,1754094641475,-460.0,0.0002033,2]
[376739607,1754094641485,-460.0,0.0002033,2]
[376739608,1754094641494,-730.84,0.0002033,2]
[376739609,1754094641504,-460.0,0.00020331,2]
[376739610,1754094641513,-460.0,0.00020331,2]
[376739611,1754094641522,-460.0,0.00020331,2]
[376739612,1754094641531,-460.0,0.00020331,2]
[376739613,1754094641541,-460.0,0.00020331,2]
[376739614,1754094641550,-460.0,0.00020331,2]
[376739615,1754094641562,-460.0,0.00020331,2]
[376739616,1754094641571,-460.0,0.00020331,2]
[376739617,1754094641581,-572.4,0.00020332,2]
[376739618,1754094641590,-460.0,0.00020332,2]
[376739619,1754094641600,-460.0,0.00020332,2]
[376739620,1754094641609,-1133.02,0.00020332,2]
[376739621,1754094641618,-505.64,0.00020333,2]
[376739622,1754094641627,-909.52850048,0.00020452,3]
[376739623,1754094641636,-460.0,0.00020604,2]
[376739624,1754094641645,-460.0,0.00020604,2]
[376739625,1754094641654,-2049.25,0.00020604,2]
[376739626,1754094641663,-594.08945891,0.00020604,2]
[376739627,1754094641672,-490.53,0.00020604,2]
[376739628,1754094641681,-460.85,0.00020604,2]
[376739629,1754094641690,-762.91,0.00020604,2]
[376739630,1754094641700,-460.0,0.00020604,2]
[376739631,1754094641709,-460.0,0.00020604,2]
[376739632,1754094641718,-460.0,0.00020604,2]
[376739633,1754094641727,-7.62751027,0.00020604,2]
[376739634,1754094641806,-515.95806706,0.00020604,2]
[376739635,1754094641820,-22.57442267,0.00020604,2]
[376739636,1754094641830,-460.0,0.00020604,2]
[376739637,1754094641838,-505.95,0.00020604,2]
[376739638,1754094641847,-460.0,0.00020604,2]
[376739639,1754094641857,-324.36639147,0.00020604,2]
[376739640,1754094641868,-135.63360853,0.00020604,2]
[376739641,1754094641877,-730.84,0.00020604,2]
[376739642,1754094641887,-303.52,0.00020605,2]
[376739643,1754094641896,-460.0,0.00020605,2]
[376739644,1754094641906,-460.0,0.00020605,2]
[376739645,1754094641915,-460.0,0.00020605,2]
[376739646,1754094641925,-460.0,0.00020605,2]
[376739647,1754094641934,-460.0,0.00020605,2]
[376739648,1754094641943,-460.0,0.00020605,2]
[376739649,1754094641952,-460.0,0.00020605,2]
[376739650,1754094641962,-572.4,0.00020606,2]
[376739651,1754094641972,-215.13,0.00020606,2]
[376739652,1754094641981,-460.0,0.00020606,2]
[376739653,1754094641991,-1133.02,0.00020606,2]
[376739654,1754094642000,-505.64,0.00020607,2]
[376739655,1754094642009,-1000.0,0.00020621,2]
[376739656,1754094642018,-584.093601,0.00020621,2]
[376739657,1754094642028,-1000.0,0.00020621,2]
[376739658,1754094642038,-505.13672261,0.00020621,2]
[376739659,1754094642047,-683.10756274,0.00020668,2]
[376739660,1754094642129,-366.99999997,0.00020668,2]
[376739661,1754094642143,-449.89243729,0.00020668,2]
[376739662,1754094642152,-909.52850048,0.00020728,3]
[376739663,1754094642161,-153.62924809,0.00020832,2]
[376739664,1754094642172,-398.076,0.00020832,2]
[376739665,1754094642183,-12092.5606604,0.00020832,2]
[376739666,1754094642192,-460.76838597,0.00020832,2]
[376739667,1754094642201,-526.925583,0.00020832,2]
[376739668,1754094642210,-160.0,0.00020832,2]
[376739669,1754094642219,-160.0,0.00020838,2]
[376739670,1754094642228,-160.0,0.00020838,2]
[376739671,1754094642237,-160.0,0.00020838,2]
[376739672,1754094642247,-841.53699354,0.00020838,2]
[376739673,1754094642256,-160.0,0.00020838,2]
[376739674,1754094642265,-160.0,0.00020838,2]
[376739675,1754094642274,-231.52694941,0.00020838,2]
[376739676,1754094642283,-260.0,0.00020854,2]
[376739677,1754094642292,-312.16666667,0.00020863,2]
[376739678,1754094642301,-215.03686253,0.00020863,2]
[376739679,1754094642313,-460.0,0.00020878,2]
[376739680,1754094642322,-2049.25,0.00020878,2]
[376739681,1754094642331,-490.53,0.00020878,2]
[376739682,1754094642340,-460.85,0.00020878,2]
[376739683,1754094642350,-762.91,0.00020878,2]
[376739684,1754094642359,-460.0,0.00020878,2]
[376739685,1754094642369,-206.57521663,0.00020878,2]
[376739686,1754094642379,-460.0,0.00020878,2]
[376739687,1754094642391,-546.16,0.00020878,2]
[376739688,1754094642401,-460.0,0.00020878,2]
[376739689,1754094642410,-505.95,0.00020878,2]
[376739690,1754094642419,-460.0,0.00020878,2]
[376739691,1754094642430,-460.0,0.00020878,2]
[376739692,1754094642439,-730.84,0.00020878,2]
[376739693,1754094642449,-460.0,0.00020879,2]
[376739694,1754094642460,-460.0,0.00020879,2]
[376739695,1754094642469,-460.0,0.00020879,2]
[376739696,1754094642478,-460.0,0.00020879,2]
[376739697,1754094642487,-460.0,0.00020879,2]
[376739698,1754094642496,-460.0,0.00020879,2]
[376739699,1754094642505,-460.0,0.00020879,2]
[376739700,1754094642515,-572.4,0.0002088,2]
[376739701,1754094642524,-460.0,0.0002088,2]
[376739702,1754094642533,-1133.02,0.0002088,2]
[376739703,1754094642542,-505.64,0.00020881,2]
[376739704,1754094642551,-420.0,0.00020959,2]
[376739705,1754094642563,-157.0,0.00021,3]
[376739706,1754094642572,-157.0,0.00021,2]
[376739707,1754094642582,-157.0,0.00021,2]
[376739708,1754094642591,-157.0,0.00021,3]
[376739709,1754094642600,-157.0,0.00021,3]
[376739710,1754094642610,-8057.71660867,0.00021,5]
[376739711,1754094642619,-45573.85517628,0.00021,2]
[376739716,1754094643691,-460.0,0.00019234,2]
[376739717,1754094643702,-460.0,0.00019508,2]
[376739718,1754094643711,-216.22890603,0.00020832,2]
[376739719,1754094643720,-667.48,0.00020869,3]
[376739720,1754094643729,-8230.69510604,0.00021,2]
[376739721,1754094643738,-909.52850048,0.00021003,4]
[376739722,1754094643747,-458.30054985,0.00021062,2]
[376739723,1754094643757,-459.77,0.00021152,2]
[376739724,1754094643766,-2049.25,0.00021152,2]
[376739725,1754094643775,-490.53,0.00021152,2]
[376739726,1754094643784,-460.85,0.00021152,2]
[376739727,1754094643793,-762.91,0.00021152,2]
[376739728,1754094643803,-460.0,0.00021152,2]
[376739729,1754094643814,-460.0,0.00021152,2]
[376739730,1754094643824,-546.16,0.00021152,2]
[376739731,1754094643833,-460.0,0.00021152,2]
[376739732,1754094643842,-505.95,0.00021152,2]
[376739734,1754094643852,-344.63311331,0.00021152,2]
[376739736,1754094643861,-460.0,0.00021152,2]
[376739738,1754094643871,-730.84,0.00021152,2]
[376739739,1754094643880,-460.0,0.00021153,2]
[376739741,1754094643889,-460.0,0.00021153,2]
[376739742,1754094643899,-235.52,0.00021153,2]
[376739744,1754094643910,-460.0,0.00021153,2]
[376739746,1754094643920,-460.0,0.00021153,2]
[376739747,1754094643930,-460.0,0.00021153,2]
[376739749,1754094643939,-460.0,0.00021153,2]
[376739751,1754094643948,-572.4,0.00021154,2]
[376739753,1754094643958,-460.0,0.00021154,2]
[376739754,1754094643967,-1133.02,0.00021154,2]
[376739756,1754094643976,-505.64,0.00021155,2]
[376739757,1754094643985,-155.0,0.00021159,2]
[376739758,1754094643994,-638.40224091,0.00021168,2]
[376739759,1754094644003,-1985.56759292,0.00021216,2]
[376739760,1754094644012,-4464.95865842,0.0002125,2]
[376739761,1754094644022,-909.52850048,0.00021279,5]
[376739762,1754094644031,-500.0,0.00021368,2]
[376739763,1754094644040,-500.0,0.00021368,2]
[376739764,1754094644049,-500.0,0.00021368,2]
[376739765,1754094644058,-500.0,0.00021368,2]
[376739766,1754094644069,-500.0,0.00021368,2]
[376739767,1754094644078,-500.0,0.00021368,2]
[376739768,1754094644087,-500.0,0.00021368,2]
[376739769,1754094644096,-500.0,0.00021368,2]
[376739770,1754094644105,-500.0,0.00021368,2]
[376739771,1754094644115,-500.0,0.00021368,2]
[376739772,1754094644126,-500.0,0.00021368,2]
[376739773,1754094644135,-151.0,0.00021368,2]
[376739774,1754094644144,-151.0,0.00021368,2]
[376739775,1754094644154,-151.0,0.00021368,2]
[376739776,1754094644163,-151.0,0.00021368,2]
[376739777,1754094644172,-151.0,0.00021368,2]
[376739778,1754094644181,-151.0,0.00021368,2]
[376739779,1754094644190,-151.0,0.00021368,2]
[376739780,1754094644199,-151.0,0.00021368,2]
[376739781,1754094644208,-151.0,0.00021368,2]
[376739782,1754094644218,-151.0,0.00021368,2]
[376739783,1754094644227,-151.0,0.00021368,2]
[376739784,1754094644236,-151.0,0.00021368,2]
[376739785,1754094644245,-151.0,0.00021368,2]
[376739786,1754094644255,-151.0,0.00021368,2]
[376739787,1754094644264,-151.0,0.00021368,2]
[376739788,1754094644273,-151.0,0.00021368,2]
[376739789,1754094644282,-151.0,0.00021368,2]
[376739790,1754094644292,-151.0,0.00021368,2]
[376739791,1754094644303,-151.0,0.00021368,2]
[376739792,1754094644314,-151.0,0.00021368,2]
[376739793,1754094644323,-151.0,0.00021368,2]
[376739794,1754094644332,-151.0,0.00021368,2]
[376739795,1754094644341,-151.0,0.00021368,2]
[376739796,1754094644350,-151.0,0.00021368,2]
[376739797,1754094644467,-151.0,0.00021368,2]
[376739798,1754094644477,-151.0,0.00021368,2]
[376739799,1754094644487,-151.0,0.00021368,2]
[376739800,1754094644497,-151.0,0.00021368,2]
[376739801,1754094644506,-161.20581016,0.00021368,2]
[376739802,1754094644516,-151.0,0.00021368,2]
[376739803,1754094644525,-151.0,0.00021368,2]
[376739804,1754094644535,-151.0,0.00021368,2]
[376739805,1754094644544,-151.0,0.00021368,2]
[376739806,1754094644554,-151.0,0.00021368,2]
[376739807,1754094644564,-296.62956687,0.00021368,2]
[376739808,1754094644573,-500.0,0.00021371,2]
[376739809,1754094644582,-345.09820415,0.00021375,2]
[376739810,1754094644592,-360.0,0.00021402,2]
[376739811,1754094644601,-2049.25,0.00021426,2]
[376739812,1754094644611,-490.53,0.00021426,2]
[376739813,1754094644621,-460.85,0.00021426,2]
[376739814,1754094644631,-460.0,0.00021426,2]
[376739815,1754094644642,-762.91,0.00021426,2]
[376739816,1754094644652,-460.0,0.00021426,2]
[376739817,1754094644661,-546.16,0.00021426,2]
[376739818,1754094644670,-460.0,0.00021426,2]
[376739819,1754094644680,-505.95,0.00021426,2]
[376739820,1754094644690,-460.0,0.00021426,2]
[376739821,1754094644700,-730.84,0.00021426,2]